{"text_format":"3","workbook":"xlsx","n_sheets":3,"sheets":["POBL","Fisik","Per Kecamatan"],"not_rendered":{"defined_names":9},"read":"whole","date_system":"1900"}

{"sheet":"POBL","index":0,"n_rows":213,"n_cols":25,"rows_kept":213,"merged":[[0,0,0,21],[1,0,1,21],[3,0,3,3],[4,0,4,3],[5,0,6,3],[5,4,6,4],[5,5,6,5],[5,6,6,6],[5,7,6,7],[5,8,6,8],[5,9,5,10],[5,11,6,11],[5,12,5,14],[5,15,5,16],[5,17,5,18],[5,19,5,20],[5,22,5,23],[5,24,6,24],[7,0,7,3],[7,17,7,18],[7,19,7,20],[7,22,7,23],[202,17,202,23],[203,17,203,23],[204,17,204,23],[205,17,205,23],[210,17,210,23],[211,17,211,23],[212,17,212,23]]}
["REKAPITULASI PERKEMBANGAN KEGIATAN BELAJA LANGSUNG"]
["TAHUN ANGGARAN 2025"]
[]
["NAMA OPD",{"$nulls":3},": DINAS PEKERJAAN UMUM DAN PENATAAN RUANG"]
["BULAN",{"$nulls":3},": FEBRUARI 2025"]
["NO",{"$nulls":3},"JENIS PEKERJAAN","SUMBER DANA","BIDANG","DESA","KECAMATAN","ANGGARAN (Rp)",null,"REKANAN","KONTRAK",null,null,"JANGKA WAKTU",null,"RENCANA KAS",null,"REALISASI KEUANGAN",null,"REALISASI FISIK","OUTPUT",null,"KETERANGAN"]
[{"$nulls":9},"PENETAPAN","PERUBAHAN",null,"TGL KONTRAK","NO KONTRAK","NILAI KONTRAK","MULAI","SELESAI","Jumlah (Rp)","%","Jumlah (Rp)","%","%","OUTPUT","SATUAN"]
[1,{"$nulls":3},2,3,4,5,6,7,8,9,10,11,12,13,14,15,null,16,null,17,18,null,19]
[{"$nulls":4},"DINAS PEKERJAAN UMUM DAN PENATAAN RUANG",{"$nulls":4},{"$f":"SUM(J11,J40,J59,J69,J82,J86,J89,J186,J192)","v":{"v":102705077073,"d":"102,705,077,073"}},{"$nulls":9},{"$f":"SUM(T11,T40,T59,T69,T82,T86,T89,T196,T199)","v":{"v":1215549838,"d":"1,215,549,838"}},{"$f":"T9/J9*100","v":{"v":1.1835343223938384,"d":"1.18"}}]
[]
["A",{"$nulls":3},"PROGRAM PENUNJANG URUSAN PEMERINTAHAN DAERAH KABUPATEN/KOTA",{"$nulls":4},{"$f":"SUM(J12,J15,J17,J24,J26,J30)","v":{"v":17955080693,"d":"17,955,080,693"}},{"$nulls":9},{"$f":"SUM(T12,T15,T17,T26,T30)","v":{"v":1215549838,"d":"1,215,549,838"}},{"$f":"T11/J11*100","v":{"v":6.7699491791974875,"d":"6.77"}}]
[null,1,null,null,"Perencanaan, Penganggaran, dan Evaluasi Kinerja Perangkat Daerah","APBD","BP",null,null,{"$f":"SUM(J13:J14)","v":{"v":135000000,"d":"135,000,000"}},{"$nulls":9},{"$f":"SUM(T13+T14)","v":0},{"$f":"T12/J12*100","v":0}]
[null,null,"a",null,"Penyusunan Dokumen Perencanaan Perangkat Daerah","APBD","BP",null,null,{"v":70000000,"d":"70,000,000"},{"$nulls":10},{"$f":"T13/J13*100","v":0}]
[null,null,"b",null,"Evaluasi Kinerja Perangkat Daerah ","APBD","BP",null,null,{"v":65000000,"d":"65,000,000"},{"$nulls":10},0]
[null,2,null,null,"Administrasi Keuangan Perangkat Daerah","APBD","SEK",null,null,{"$f":"J16","v":{"v":11305580693,"d":"11,305,580,693"}},{"$nulls":9},{"$f":"T16","v":{"v":1184349176,"d":"1,184,349,176"}},{"$f":"T15/J15*100","v":{"v":10.475792514871046,"d":"10.48"}}]
[null,null,"a",null,"Penyediaan Gaji dan Tunjangan ASN","APBD","SEK",null,null,{"v":11305580693,"d":"11,305,580,693"},{"$nulls":9},{"$f":"794226325+390122851","v":{"v":1184349176,"d":"1,184,349,176"}},{"$f":"T16/J16*100","v":{"v":10.475792514871046,"d":"10.48"}}]
[null,3,null,null,"Administrasi Umum Perangkat Daerah","APBD","SEK",null,null,{"$f":"SUM(J18:J23)","v":{"v":412250000,"d":"412,250,000"}},{"$nulls":9},{"$f":"SUM(T18:T23)","v":{"v":2235000,"d":"2,235,000"}},{"$f":"T17/J17*100","v":{"v":0.5421467556094602,"d":"0.54"}}]
[null,null,"a",null,"Penyediaan Komponen Instalasi Listrik/Penerangan Bangunan Kantor","APBD","SEK",null,null,{"v":10000000,"d":"10,000,000"},{"$nulls":9},{"v":800000,"d":"800,000"},{"$f":"T18/J18*100","v":{"v":8,"d":"8.00"}}]
[null,null,"b",null,"Penyediaan Peralatan dan Perlengkapan Kantor","APBD","SEK",null,null,{"v":50000000,"d":"50,000,000"},{"$nulls":10},0]
[null,null,"c",null,"Penyediaan Peralatan Rumah Tangga","APBD","SEK",null,null,{"v":60000000,"d":"60,000,000"},{"$nulls":9},{"v":1075000,"d":"1,075,000"},{"v":1.7916666666666667,"d":"1.79"}]
[null,null,"d",null,"Penyediaan Barang Cetakan dan Penggandaan","APBD","SEK",null,null,{"v":20000000,"d":"20,000,000"},{"$nulls":10},0]
[null,null,"e",null,"Penyediaan Bahan Bacaan dan Peraturan Perundang-undangan","APBD","SEK",null,null,{"v":2250000,"d":"2,250,000"},{"$nulls":9},{"v":360000,"d":"360,000"},{"v":16,"d":"16.00"}]
[null,null,"f",null,"Penyelenggaraan Rapat Koordinasi dan Konsultasi SKPD","APBD","SEK",null,null,{"v":270000000,"d":"270,000,000"},{"$nulls":10},0]
[null,4,null,null,"Pengadaan Barang Milik Daerah Penunjang Urusan Pemerintah Daerah","APBD","SEK",null,null,{"$f":"J25","v":{"v":150000000,"d":"150,000,000"}},{"$nulls":9},{"$f":"T25","v":{"v":1035000,"d":"1,035,000"}},{"$f":"T24/J24*100","v":0.69}]
[null,null,"a",null,"Pengadaan Peralatan dan Mesin Lainnya","APBD","SEK",null,null,{"v":150000000,"d":"150,000,000"},{"$nulls":9},{"v":1035000,"d":"1,035,000"},{"$f":"T25/J25*100","v":0.69}]
[null,5,null,null,"Penyediaan Jasa Penunjang Urusan Pemerintahan Daerah","APBD","SEK",null,null,{"$f":"SUM(J27:J29)","v":{"v":1002250000,"d":"1,002,250,000"}},{"$nulls":9},{"$f":"SUM(T27,T28,T29)","v":{"v":14780972,"d":"14,780,972"}},{"$f":"T26/J26*100","v":{"v":1.474778947368421,"d":"1.47"}}]
[null,null,"a",null,"Penyediaan Jasa Surat Menyurat","APBD","SEK",null,null,{"v":2250000,"d":"2,250,000"},{"$nulls":10},{"$f":"T27/J27*100","v":0}]
[null,null,"b",null,"Penyediaan Jasa Komunikasi, Sumber Daya Air dan Listrik","APBD","SEK",null,null,{"v":100000000,"d":"100,000,000"},{"$nulls":9},{"v":12830972,"d":"12,830,972"},{"$f":"T28/J28*100","v":{"v":12.830972,"d":"12.83"}}]
[null,null,"c",null,"Penyediaan Jasa Pelayanan Umum Kantor","APBD","SEK",null,null,{"v":900000000,"d":"900,000,000"},{"$nulls":9},{"v":1950000,"d":"1,950,000"},{"$f":"T29/J29*100","v":{"v":0.21666666666666665,"d":"0.22"}}]
[null,6,null,null,"Pemeliharaan Barang Milik Daerah Penunjang Urusan Pemerintahan Daerah","APBD","SEK",null,null,{"$f":"SUM(J31:J33)","v":{"v":4950000000,"d":"4,950,000,000"}},{"$nulls":9},{"$f":"SUM(T31,T32,T33)","v":{"v":14184690,"d":"14,184,690"}},{"$f":"T30/J30*100","v":{"v":0.28655939393939395,"d":"0.29"}}]
[null,null,"a",null,"Penyediaan Jasa Pemeliharaan, Biaya Pemeliharaan, Pajak dan Perizinan Kendaraan Dinas Operasional atau Lapangan","APBD","SEK",null,null,{"v":325000000,"d":"325,000,000"},{"$nulls":9},{"v":13736690,"d":"13,736,690"},{"$f":"T31/J31*100","v":{"v":4.226673846153846,"d":"4.23"}}]
[null,null,"b",null,"Pemeliharaan Peralatan dan Mesin Lainnya","APBD","SEK",null,null,{"v":25000000,"d":"25,000,000"},{"$nulls":10},0]
[null,null,"c",null,"Pemeliharaan/Rehabilitasi Gedung Kantor dan Bangunan Lainnya","APBD","SEK",null,null,{"$f":"SUM(J34:J38)","v":{"v":4600000000,"d":"4,600,000,000"}},{"$nulls":9},{"v":448000,"d":"448,000"},{"v":0.00973913043478261,"d":"0.01"}]
[{"$nulls":3},1,"Pembangunan Rumah Singgah Sosial/Shelter","APBD","SEK",null,null,{"v":2500000000,"d":"2,500,000,000"}]
[{"$nulls":3},2,"Rehabilitasi Gedung Kantor Kelurahan Wonosobo Timur","APBD","SEK",null,"Wonosobo",{"v":1000000000,"d":"1,000,000,000"}]
[{"$nulls":3},3,"Pembangunan Gedung Provost Polres Wonosobo (Lanjutan)","APBD","SEK",null,"Wonosobo",{"v":750000000,"d":"750,000,000"}]
[{"$nulls":3},4,"Rehabilitasi Aula Polsek Mojotengah","APBD","SEK",null,"Mojotengah",{"v":200000000,"d":"200,000,000"}]
[{"$nulls":3},5,"Biaya Umum","APBD","SEK",null,null,{"v":150000000,"d":"150,000,000"}]
[]
["B",{"$nulls":3},"PROGRAM PENGELOLAAN SUMBER DAYA AIR (SDA)",{"$nulls":4},{"$f":"SUM(J41,J54,J55,J56,J57)","v":{"v":6090000000,"d":"6,090,000,000"}}]
[null,null,"b",null,"Rehabilitasi Jaringan Irigasi Permukaan",null,"SDA",null,null,{"$f":"SUM(J42:J52)","v":{"v":3100000000,"d":"3,100,000,000"}}]
[{"$nulls":3},1,"Paket Pekerjaan 2025","APBD","SDA",null,null,{"v":1000000000,"d":"1,000,000,000"}]
[{"$nulls":3},2,"Irigasi Gintung Limbangan Watumalang","APBD","SDA",null,"Watumalang",{"v":500000000,"d":"500,000,000"}]
[{"$nulls":3},3,"SALURAN IRIGASI DI BANCET DESA. CANDI MULYO KEC. KERTEK , Kab. Wonosobo","APBD","SDA",null,"Kertek",{"v":200000000,"d":"200,000,000"}]
[{"$nulls":3},4,"Pembangunan Irigasi DI Sigupit Desa Karangrejo Kecamatan Selomerto","APBD","SDA",null,"Selomerto",{"v":200000000,"d":"200,000,000"}]
[{"$nulls":3},5,"PEMBANGUNAN SALURAN IRIGASI DI SIPENATUS DESA. REJOSARI KEC. KALIKAJAR, Kab. Wonosobo","APBD","SDA",null,"Kalikajar",{"v":200000000,"d":"200,000,000"}]
[{"$nulls":3},6,"pembangunan refilitasi/senderan irigasi DI pahat kelurahan kertek kampung campursari RW02 kec.Kertek, Kab. Wonosobo","APBD","SDA",null,"Kertek",{"v":200000000,"d":"200,000,000"}]
[{"$nulls":3},7,"pembangunan refilitasi irigasi DI Geblok kelurahan miplak kec. wonosobo, Kab. Wonosobo","APBD","SDA",null,"Wonosobo",{"v":200000000,"d":"200,000,000"}]
[{"$nulls":3},8,"REHABILITASI DI KALITULANG","APBD","SDA",null,"Watumalang",{"v":100000000,"d":"100,000,000"}]
[{"$nulls":3},9,"Pembangunan Bendung Penartan Sungai Wanganaji Kelurahan Kalianget Kecamatan Wonosobo","APBD","SDA",null,"Wonosobo",{"v":100000000,"d":"100,000,000"}]
[{"$nulls":3},10,"Rehabilitasi Saluran dan Senderan Kali Alur DI Mangli Kelurahan Kejiwan Kecamatan Wonosobo","APBD","SDA",null,"Wonosobo",{"v":200000000,"d":"200,000,000"}]
[{"$nulls":3},11,"Rahabilitasi Irigasi sikudi Kalimendong Kecamatan Leksono","APBD","SDA",null,"Leksono",{"v":200000000,"d":"200,000,000"}]
[]
[null,null,"c",null,"Operasi dan Pemeliharaan Jaringan Irigasi Permukaan","APBD","SDA",null,null,{"v":2490000000,"d":"2,490,000,000"}]
[null,null,"d",null,"Operasi dan Pemeliharaan Bendung Irigasi","APBD","SDA",null,null,{"v":300000000,"d":"300,000,000"}]
[null,null,"e",null,"Operasional Kelembagaan Pengelola Irigasi","APBD","SDA",null,null,{"v":100000000,"d":"100,000,000"}]
[null,null,"f",null,"Penyusunan Rencana Teknis dan Dokumen Lingkungan Hidup untuk Konstruksi Irigasi dan Rawa","APBD","SDA",null,null,{"v":100000000,"d":"100,000,000"}]
[]
["C",{"$nulls":3},"PROGRAM PENGELOLAAN DAN PENGEMBANGAN SISTEM PENYEDIAAN AIR MINUM",{"$nulls":4},{"$f":"SUM(J60,J61)","v":{"v":1100000000,"d":"1,100,000,000"}}]
[null,null,"a",null,"Pembinaan dan Pemberdayaan Masyarakat dalam Pengelolaan dan Pengembangan Sistem Penyediaan Air Minum (SPAM)","APBD","CK",null,null,{"v":100000000,"d":"100,000,000"}]
[null,null,"b",null,"Perluasan Sistem Penyediaan Air Minum (SPAM) Jaringan Perpipaan","APBD","CK",null,null,{"$f":"SUM(J62:J67)","v":{"v":1000000000,"d":"1,000,000,000"}}]
[{"$nulls":3},1,"Skenario Paska Pembangunan Embung Dieng","APBD","CK",null,null,{"v":50000000,"d":"50,000,000"}]
[{"$nulls":3},2,"Air bersih mojosari  dk wonoyoso mojotengah","APBD","CK",null,"Mojotengah",{"v":250000000,"d":"250,000,000"}]
[{"$nulls":3},3,"Air bersih dk banaran kayugiyang garung","APBD","CK",null,"Garung",{"v":100000000,"d":"100,000,000"}]
[{"$nulls":3},4,"Perluasan SPAM Jaringan Perpipaan Desa Tieng Kec. Kejajar","APBD","CK",null,"Kejajar",{"v":250000000,"d":"250,000,000"}]
[{"$nulls":3},5,"Perluasan SPAM Jaringan Perpipaan Desa Damarkasiyan Kec. Kertek","APBD","CK",null,"Kertek",{"v":250000000,"d":"250,000,000"}]
[{"$nulls":3},6,"Biaya Umum","APBD","CK",null,null,{"v":100000000,"d":"100,000,000"}]
[]
["D",{"$nulls":3},"PROGRAM PENGELOLAAN DAN PENGEMBANGAN SISTEM AIR LIMBAH",{"$nulls":4},{"$f":"SUM(J70,J71,J72,J80)","v":{"v":1825000000,"d":"1,825,000,000"}}]
[null,null,"a",null,"Optimalisasi Instalasi Pengolahan Lumpur Tinja (IPLT) ","APBD","CK",null,null,{"v":500000000,"d":"500,000,000"}]
[null,null,"b",null,"Operasi dan Pemeliharaan Sistem Pengelolaan Air Limbah Domestik (SPALD)","APBD","CK",null,null,{"v":250000000,"d":"250,000,000"}]
[null,null,"d",null,"Penyediaan Sub Sistem Pengolahan Air Limbah Domestik (SPALD) Setempat",{"$nulls":4},{"$f":"SUM(J73:J79)","v":{"v":1000000000,"d":"1,000,000,000"}}]
[{"$nulls":3},1,"Pembangunan Tangki Septik Komunal Pondok Pesantren Miftahul Huda Siwatu Bumiroso ","APBD","CK",null,"Watumalang",{"v":133500000,"d":"133,500,000"}]
[{"$nulls":3},2,"Pembangunan Tangki Septik Komunal Desa Dieng Kec. Kejajar","APBD","CK",null,"Kejajar",{"v":150000000,"d":"150,000,000"}]
[{"$nulls":3},3,"Pembangunan Tangki Septik Individu Desa Dempel Kec. Kalibawang","APBD","CK",null,"Kalibawang",{"v":150000000,"d":"150,000,000"}]
[{"$nulls":3},4,"Pembangunan Tangki Septik Individu Desa Butuh Kec. Kalikajar","APBD","CK",null,"Kalikajar",{"v":150000000,"d":"150,000,000"}]
[{"$nulls":3},5,"Pembangunan Tangki Septik Individu Desa Tambi Kec. Kejajar","APBD","CK",null,"Kejajar",{"v":150000000,"d":"150,000,000"}]
[{"$nulls":3},6,"Pembangunan Tangki Septik Individu Desa Kapencar Kec. Kertek","APBD","CK",null,"Kertek",{"v":150000000,"d":"150,000,000"}]
[{"$nulls":3},7,"Biaya Umum","APBD","CK",null,null,{"v":116500000,"d":"116,500,000"}]
[null,null,"e",null,"Pembinaan dan Pemberdayaan Masyarakat dalam Pengembangan Sistem Pengelolaan Air Limbah Domestik (SPALD)","APBD","CK",null,null,{"v":75000000,"d":"75,000,000"}]
[]
["E",{"$nulls":3},"PROGRAM PENGELOLAAN DAN PENGEMBANGAN SISTEM DRAINASE","APBD","SDA",null,null,{"$f":"SUM(J83:J84)","v":{"v":770000000,"d":"770,000,000"}}]
[null,null,"a",null,"Rehabilitasi Sistem Drainase Perkotaan","APBD","SDA",null,null,{"v":370000000,"d":"370,000,000"}]
[null,null,"b",null,"Operasi dan Pemeliharaan Sistem Drainase Perkotaan","APBD","SDA",null,null,{"v":400000000,"d":"400,000,000"}]
[]
["F",{"$nulls":3},"PROGRAM PENATAAN BANGUNAN GEDUNG","APBD","BP",null,null,{"$f":"J87","v":{"v":772458380,"d":"772,458,380"}}]
[null,null,"a",null,"Penyelenggaraan Penerbitan Persetujuan Bangunan Gedung (PBG), Sertifikat Laik Fungsi (SLF), Surat Bukti Kepemilikan Bangunan Gedung (SBKBG),  Rencana Teknis Pembongkaran Bangunan Gedung (RTB),  Tim Profesi Ahli (TPA), Tim Penilai Teknis (TPT), Penilik, dan Pendataan Bangunan Gedung melalui SIMBG","APBD","BP",null,null,{"v":772458380,"d":"772,458,380"}]
[]
["G",{"$nulls":3},"PROGRAM PENYELENGGARAAN JALAN",{"$nulls":4},{"$f":"SUM(J90,J91,J96,J99,J163,J164,J165,J166,J184)","v":{"v":72422348000,"d":"72,422,348,000"}}]
[null,null,"a",null,"Pengelolaan Leger Jalan","APBD","BP",null,null,{"v":255000000,"d":"255,000,000"}]
[null,null,"b",null,"Penggantian Jembatan",{"$nulls":4},{"$f":"SUM(J92:J95)","v":{"v":3800000000,"d":"3,800,000,000"}}]
[{"$nulls":3},1,"Penggantian Jembatan Gunturmadu","APBD","BM","Gunturmadu","Mojotengah",{"v":2750000000,"d":"2,750,000,000"}]
[{"$nulls":3},2,"Peningkatan Jembatan Kali Songgoluwang (Lanjutan)","APBD","BM","Manggis - Tlogogundang","Sukoharjo/Leksono",{"v":650000000,"d":"650,000,000"}]
[{"$nulls":3},3,"Pembangunan Jembatan Ruas Jalan Banyukembar - Pasuruhan Kec. Watumalang","APBD","BM",null,"Watumalang",{"v":200000000,"d":"200,000,000"}]
[{"$nulls":3},4,"Pembangunan Jembatan Sigandu Sungai Kali Kawung Sumberwulan Kecamatan Selomerto","APBD","BM",null,"Selomerto",{"v":200000000,"d":"200,000,000"}]
[null,null,"c",null,"Pembangunan Jalan",{"$nulls":4},{"$f":"SUM(J97,J98)","v":{"v":1800000000,"d":"1,800,000,000"}}]
[{"$nulls":3},1,"Pengadaan Tanah Jengkol - Tlogo","APBD","BM",null,"Garung",{"v":1500000000,"d":"1,500,000,000"}]
[{"$nulls":4},"Biaya Umum","APBD","BM",null,null,{"v":300000000,"d":"300,000,000"}]
[null,null,"d",null,"Rekonstruksi Jalan",{"$nulls":4},{"$f":"SUM(J100:J161)","v":{"v":57292578000,"d":"57,292,578,000"}}]
[{"$nulls":3},1,"Peningkatan Jalan Sumbersari - Binangun","APBD","BM",null,"Watumalang",{"v":2750000000,"d":"2,750,000,000"}]
[{"$nulls":3},2,"Peningkatan Jalan Pasar lawas - Bts. Kab Banjarnegara","APBD","BM",null,"Watumalang",{"v":500000000,"d":"500,000,000"}]
[{"$nulls":3},3,"Peningkatan Jalan Tlogo - Banyukembar","APBD","BM",null,"Sukoharjo/Watumalang",{"v":2500000000,"d":"2,500,000,000"}]
[{"$nulls":3},4,"Peningkatan Jalan Pasuruhan - Banyukembar","APBD","BM",null,"Watumalang",{"v":500000000,"d":"500,000,000"}]
[{"$nulls":3},5,"Peningkatan Jalan Sukoharjo - Gunungtugel","APBD","BM",null,"Sukoharjo",{"v":500000000,"d":"500,000,000"}]
[{"$nulls":3},6,"Peningkatan Jalan Kalilang - Bulu","APBD","BM",null,"Garung",{"v":2250000000,"d":"2,250,000,000"}]
[{"$nulls":3},7,"Peningkatan Jalan Garung - Kalilang","APBD","BM",null,"Garung",{"v":1400000000,"d":"1,400,000,000"}]
[{"$nulls":3},8,"Peningkatan Jalan Beran - Warangan","APBD","BM",null,"Kepil",{"v":700000000,"d":"700,000,000"}]
[{"$nulls":3},9,"Peningkatan Jalan Tanjungsari-Marongsari","APBD","BM",null,"Sapuran",{"v":3250000000,"d":"3,250,000,000"}]
[{"$nulls":3},10,"Peningkatan Jalan Larangan- Gambaran","APBD","BM",null,"Kaliwiro",{"v":1850000000,"d":"1,850,000,000"}]
[{"$nulls":3},11,"Peningkatan Jalan Tanjunganom - Grugu","APBD","BM",null,"Kaliwiro",{"v":500000000,"d":"500,000,000"}]
[{"$nulls":3},12,"Peningkatan Jalan Pucungkerep - Ngasinan","APBD","BM",null,"Kaliwiro",{"v":500000000,"d":"500,000,000"}]
[{"$nulls":3},13,"Peningkatan Jalan Mojosari - Lumajang","APBD","BM",null,"Mojotengah/Watumalng",{"v":500000000,"d":"500,000,000"}]
[{"$nulls":3},14,"Peningkatan Jalan Panerusan - Karanggedang (Batas Kab Purworejo)","APBD","BM",null,"Wadaslintang",{"v":500000000,"d":"500,000,000"}]
[{"$nulls":3},15,"Peningkatan Jalan Mudal - Candirejo","APBD","BM",null,"Mojotengah",{"v":500000000,"d":"500,000,000"}]
[{"$nulls":3},16,"Peningkatan Jalan Dempel - Margolangu","APBD","BM",null,"Kalibawang",{"v":500000000,"d":"500,000,000"}]
[{"$nulls":3},17,"Peningkatan Jalan Ngadisono - Gambaran","APBD","BM",null,"Kaliwiro",{"v":750000000,"d":"750,000,000"}]
[{"$nulls":3},18,"Peningkatan Jalan Gunungtugel - Kajeksan","APBD","BM",null,"Sukoharjo",{"v":1000000000,"d":"1,000,000,000"}]
[{"$nulls":3},19,"Aspalisasi jalan Ruas 208 Kalisat - Plunjaran di Plunjaran Desa Plunjaran Kec. Wadaslintang","APBD","BM",null,"Wadaslintang",{"v":190000000,"d":"190,000,000"}]
[{"$nulls":3},20,"JALAN SEMAYU bojasari ruas 69 pengaspalan jalan","APBD","BM",null,"Selomerto",{"v":200000000,"d":"200,000,000"}]
[{"$nulls":3},21,"PENINGKATAN JALAN SEMEN - GENTING, KECAMATAN KALIKAJAR","APBD","BM",null,"Kalikajar",{"v":200000000,"d":"200,000,000"}]
[{"$nulls":3},22,"PENINGKATAN JALAN RUAS NO 82 KALILANG - BULU","APBD","BM",null,"Garung",{"v":200000000,"d":"200,000,000"}]
[{"$nulls":3},23,"PENINGKATAN JALAN DAN DRAINASE RUAS NO 188 KAYUBIMA - KALIKUTO ( BNA )","APBD","BM",null,"Kaliwiro",{"v":200000000,"d":"200,000,000"}]
[{"$nulls":3},24,"Aspal Jalan Kabupaten Ruas 62 Banjar - Kasiyan Desa Damarkasiyan Kecamatan Kertek","APBD","BM",null,"Kertek",{"v":200000000,"d":"200,000,000"}]
[{"$nulls":3},25,"Aspal Jalan Kabupaten Ruas 58 Sudungdewo - Bejiarum","APBD","BM",null,"Kertek",{"v":200000000,"d":"200,000,000"}]
[{"$nulls":3},26,"Aspal Jalan ruas 213 Kepunding Kalilaras Desa Ngalian Kecamatan Wadaslintang","APBD","BM",null,"Wadaslintang",{"v":150000000,"d":"150,000,000"}]
[{"$nulls":3},27,"Peningkatan Jalan Kemiriombo, katilampa, Tempurejo","APBD","BM",null,"Kalibawang",{"v":150000000,"d":"150,000,000"}]
[{"$nulls":3},28,"Peningkatan Jalan Mergolangu - Depok di Wanasari","APBD","BM",null,"Kalibawang",{"v":150000000,"d":"150,000,000"}]
[{"$nulls":3},29,"PENGASPALAN JALAN SITIHARJO WONOKROMO NO RUAS 78","APBD","BM",null,"Garung",{"v":150000000,"d":"150,000,000"}]
[{"$nulls":3},30,"SENDERAN BAHU JALAN DAN DRAINASE KALIKAJAR-PERBOTO RUAS JALAN NO 130 DUSUN NASINAN KELURAHAN KALIKAJAR KECAMATAN KALIKAJAR, Kab. Wonosobo","APBD","BM",null,"Kalikajar",{"v":200000000,"d":"200,000,000"}]
[{"$nulls":3},31,"PEMBANGUNAN DRAINASE KERTEK- PONGGOYUDAN NO RUAS 60 DUSUN KLILIN DESA. SINDUPATEN KEC. KERTEK KAB. WONOSOBO","APBD","BM",null,"Kertek",{"v":200000000,"d":"200,000,000"}]
[{"$nulls":3},32,"ASPAL JALAN RIMPAK- BATURSARI RUAS NO 127 DESA. RIMPAK KEC. SAPURAN , Kab. Wonosobo","APBD","BM",null,"Sapuran",{"v":200000000,"d":"200,000,000"}]
[{"$nulls":3},33,"PEMBANGUNAN SENDERAN JALAN RUAS 137 KEMBARAN - TEGALOMBO (DUSUN WONOKRIYO), Kab. Wonosobo","APBD","BM",null,"Kalikajar",{"v":200000000,"d":"200,000,000"}]
[{"$nulls":3},34,"ASPAL JALAN SIRUKEM- BERAN NO RUAS 164 DESA. BERAN KEC. KEPIL, Kab. Wonosobo","APBD","BM",null,"Kepil",{"v":200000000,"d":"200,000,000"}]
[{"$nulls":3},35,"Peningkatan Jalan Kabupaten Ruas 127 Rimpak - Batursari Kec. Sapuran","APBD","BM",null,"Sapuran",{"v":200000000,"d":"200,000,000"}]
[{"$nulls":3},36,"Peningkatan Jalan Kabupaten Ruas Kembaran - Banyumudal Kec. Sapuran","APBD","BM",null,"Sapuran",{"v":150000000,"d":"150,000,000"}]
[{"$nulls":3},37,"Peningkatan Jalan Ruas Jalan 202 Trimulyo - Lancar Kecamatan Wadaslintang","APBD","BM",null,"Wadaslintang",{"v":200000000,"d":"200,000,000"}]
[{"$nulls":3},38,"Jalan Lamuk - Kalikuning ruas 140 Kecamatan Kalikajar","APBD","BM",null,"Kalikajar",{"v":150000000,"d":"150,000,000"}]
[{"$nulls":3},39,"Aspal jalan ruas 53 ngadikusuman menuju tlogodalem","APBD","BM",null,"Kertek",{"v":200000000,"d":"200,000,000"}]
[{"$nulls":3},40,"Aspal Ruas 95 Jalan Kalibeber Slukatan Desa Slukatan Kecamatan Mojotengah Kab. Wonosobo","APBD","BM",null,"Mojotengah",{"v":200000000,"d":"200,000,000"}]
[{"$nulls":3},41,"Betonisasi Jalan Ruas 96 Jalan Lumajang-Mojosari Blok Kalitelu","APBD","BM",null,"Mojotengah/Watumalng",{"v":150000000,"d":"150,000,000"}]
[{"$nulls":3},42,"Aspal Jalan Banaran - Lamuk Ruas 156 Desa Wonosari Kecamatan Kalikajar","APBD","BM",null,"Kalikajar",{"v":200000000,"d":"200,000,000"}]
[{"$nulls":3},43,"Aspal Jalan Ruas Sadan-Butuh Kidul Ruas 161 Blok Pleregan Desa Butuh Kidul Kecamatan Kalikajar","APBD","BM",null,"Kalikajar",{"v":200000000,"d":"200,000,000"}]
[{"$nulls":3},44,"Aspal Jalan Perboto - kedalon No. Ruas 155 blok Njemparang Desa Perboto Kecamatan Kalikajar","APBD","BM",null,"Kalikajar",{"v":200000000,"d":"200,000,000"}]
[{"$nulls":3},45,"Aspal jalan Kalikarung - Kalibawang Ruas 120 Kalikarung Kec.Kalibawang","APBD","BM",null,"Kalibawang",{"v":200000000,"d":"200,000,000"}]
[{"$nulls":3},46,"Aspal jalan Kalikarung -Pengarengan Ruas 215 Kec. Kalibawang","APBD","BM",null,"Kalibawang",{"v":200000000,"d":"200,000,000"}]
[{"$nulls":3},47,"Aspal jalan kalibawang - tempurejo Ruas 141 kec.Kalibawang","APBD","BM",null,"Kalibawang",{"v":200000000,"d":"200,000,000"}]
[{"$nulls":3},48,"Pembangunan Aspal Jalan Pagerejo-Purwojati Ruas 65 Blok Dusun Gumawang Desa Pagerejo Kec. Kertek","APBD","BM",null,"Kertek",{"v":200000000,"d":"200,000,000"}]
[{"$nulls":3},49,"Aspal Jalan Ruas Kedalon Banyu Mudal no. 154 Blok Semen-Kwadungan Desa purwojiwo Kec. Kalikajar","APBD","BM",null,"Kalikajar",{"v":200000000,"d":"200,000,000"}]
[{"$nulls":3},50,"Pembangunan Jalan Beton Ruas Luwihan Bakalan No. Ruas 158 blok Bakalan Desa Bowongso Kec. Kalikajar","APBD","BM",null,"Kalikajar",{"v":200000000,"d":"200,000,000"}]
[{"$nulls":3},51,"Peningkatan Jalan Bugangan - Bangsri Blok Wonokero Kecamatan Wonosobo Ruas 48","APBD","BM",null,"Wonosobo",{"v":200000000,"d":"200,000,000"}]
[{"$nulls":3},52,"Aspal jalan Lumajang Mojosari di Dusun Deles Ruas 96","APBD","BM",null,"Mojotengah",{"v":200000000,"d":"200,000,000"}]
[{"$nulls":3},53,"Aspal Jalan Ruas 264 Wonokampir - Gedangsari- Pagedangan - Mutisari","APBD","BM",null,"Watumalang",{"v":200000000,"d":"200,000,000"}]
[{"$nulls":3},54,"Aspal Jalan Ruas 160 Gondowulan - Kepil di Desa Gondowulan","APBD","BM",null,"Kepil",{"v":150000000,"d":"150,000,000"}]
[{"$nulls":3},55,"Pembangunan Senderan dan Aspal Jalan Gadingrejo - Bener Ruas 162","APBD","BM",null,"Kepil",{"v":200000000,"d":"200,000,000"}]
[{"$nulls":3},56,"Aspal Jalan Bojongan Jangkrikan Ruas 170","APBD","BM",null,"Kepil",{"v":150000000,"d":"150,000,000"}]
[{"$nulls":3},57,"Aspal Jalan Beran Rimpak Ruas 163","APBD","BM",null,"Kepil",{"v":150000000,"d":"150,000,000"}]
[{"$nulls":3},58,"PENINGKATAN JALAN 59 SIYONO - SEMAYU ","DAK","BM",null,"Selomerto",{"v":2298835000,"d":"2,298,835,000"}]
[{"$nulls":3},59,"PENINGKATAN JALAN 85 JENGKOL - TLOGO","DAK","BM",null,"Garung",{"v":4027908000,"d":"4,027,908,000"}]
[{"$nulls":3},60,"PENINGKATAN JALAN 99 KALIBEBER - DERODUWUR","DAK","BM",null,"Mojotengah",{"v":8014077500,"d":"8,014,077,500"}]
[{"$nulls":3},61,"PENIGKATAN JALAN 130 KALIKAJAR - PERBOTO","DAK","BM",null,"Kalikajar",{"v":5643687500,"d":"5,643,687,500"}]
[{"$nulls":3},62,"PENIGKATAN JALAN 257 KURIPAN - WONOKAMPIR","DAK","BM",null,"Watumalang",{"v":9068070000,"d":"9,068,070,000"}]
[]
[null,null,"e",null,"Pelebaran Jalan Menuju Standar","APBD","BM",null,null,{"v":300000000,"d":"300,000,000"}]
[null,null,"f",null,"Pemeliharaan Rutin Jembatan","APBD","BM",null,null,{"v":200000000,"d":"200,000,000"}]
[null,null,"g",null,"Survey Kondisi Jalan/Jembatan","APBD","BM",null,null,{"v":236375000,"d":"236,375,000"}]
[null,null,"h",null,"Rehabilitasi Jalan",{"$nulls":4},{"$f":"SUM(J167:J182)","v":{"v":4058395000,"d":"4,058,395,000"}}]
[{"$nulls":3},1,"Rehabilitasi Jalan Diwek - Kaliputih, Desa Balekambang","APBD","BM",null,"Selomerto",{"v":300000000,"d":"300,000,000"}]
[{"$nulls":3},2,"Rehabilitasi Jalan Garung - Boralan - Kayugiyang","APBD","BM",null,"Garung",{"v":300000000,"d":"300,000,000"}]
[{"$nulls":3},3,"Rehabilitasi jalan selokromo krasak","APBD","BM",null,"Leksono/Selomerto",{"v":800000000,"d":"800,000,000"}]
[{"$nulls":3},4,"Aspal Jalan Dusun Selamaya Ruas 224 Kajeksan - Gunung Tugel Kec. Sukoharjo","APBD","BM",null,"Sukoharjo",{"v":200000000,"d":"200,000,000"}]
[{"$nulls":3},5,"Peningkatan Jalan Ruas 116 Sapuran - Marongsari Kecamatan Sapuran Kabupaten Wonosobo","APBD","BM",null,"Sapuran",{"v":150000000,"d":"150,000,000"}]
[{"$nulls":3},6,"Pembangunan Drainase dan Senderan Rt. 3 Rw 2 Kp. Wonoroto Kel. Wonoroto Kec. Watumalang","APBD","BM",null,"Watumalang",{"v":100000000,"d":"100,000,000"}]
[{"$nulls":3},7,"Pembangunan Drainase Jalan Utama Kejiwan Kuripan Blok Petir","APBD","BM",null,"Watumalang",{"v":150000000,"d":"150,000,000"}]
[{"$nulls":3},8,"Pembangunan rehabilitasi aspal jalan welahan- banyukembar kecamatan watumalang","APBD","BM",null,"Watumalang",{"v":200000000,"d":"200,000,000"}]
[{"$nulls":3},9,"Aspal Jalan Ruas 79 Bakalan ke Boralan Blok Dusun Bakalan Desa Siwuran Kecamatan Garung","APBD","BM",null,"Garung",{"v":200000000,"d":"200,000,000"}]
[{"$nulls":3},10,"Peningkatan Jalan Blok Wonolobo Desa Manggis","APBD","BM",null,"Leksono",{"v":200000000,"d":"200,000,000"}]
[{"$nulls":3},11,"rehabilitasi aspal jalan ruas 202 desa trimulyo lancar kecamatan wadaslintang","APBD","BM",null,"Wadaslintang",{"v":200000000,"d":"200,000,000"}]
[{"$nulls":3},12," Rehabilitasi Jalan Ngadikusuman-Tlogodalem (nomor ruas 53)","APBD","BM",null,"Kertek",{"v":240000000,"d":"240,000,000"}]
[{"$nulls":3},13," Rehabilitasi Jalan ruas Krasak-Winongsari nomor ruas 64","APBD","BM",null,"Selmerto/kaliwiro",{"v":245000000,"d":"245,000,000"}]
[{"$nulls":3},14," Rehabilitasi Jalan ruas Leksono - Kalimendong nomor ruas 241","APBD","BM",null,"Leksono",{"v":283395000,"d":"283,395,000"}]
[{"$nulls":3},15," Rehabilitasi Jalan ruas Mergosari - Kupangan nomor 219","APBD","BM",null,"Sukoharjo",{"v":245000000,"d":"245,000,000"}]
[{"$nulls":3},16," Rehabilitasi Jalan ruas Sidojoyo - Bangsri No ruas 31","APBD","BM",null,"Wonosobo",{"v":245000000,"d":"245,000,000"}]
[]
[null,null,"i",null,"Pemeliharaan Rutin Jalan","APBD","BM",null,null,{"v":4480000000,"d":"4,480,000,000"}]
[]
["I",{"$nulls":3},"PROGRAM PENGEMBANGAN JASA KONSTRUKSI","APBD","BP",null,null,{"$f":"SUM(J187:J190)","v":{"v":164190000,"d":"164,190,000"}}]
[null,null,"a",null,"Fasilitasi Sertifikasi Tenaga Kerja Konstruksi Kualifikasi Jabatan Operator dan Teknisi atau Analis","APBD","BP",null,null,{"v":58000000,"d":"58,000,000"}]
[null,null,"b",null,"Pelatihan Tenaga Kerja Konstruksi Kualifikasi Jabatan Operator, Teknisi atau Analis","APBD","BP",null,null,{"v":56190000,"d":"56,190,000"}]
[null,null,"c",null,"Penyediaan Data dan Informasi Jasa Konstruksi Cakupan Kabupaten/Kota","APBD","BP",null,null,{"v":25000000,"d":"25,000,000"}]
[null,null,"d",null,"Pembinaan Tertib Usaha, Tertib Penyelenggaraan, dan Tertib Pemanfaatan Produk Jasa Konstruksi","APBD","BP",null,null,{"v":25000000,"d":"25,000,000"}]
[]
["J",{"$nulls":3},"PROGRAM PENYELENGGARAAN PENATAAN RUANG","APBD","TR",null,null,{"$f":"SUM(J193:J198)","v":{"v":1606000000,"d":"1,606,000,000"}}]
[null,null,"a",null,"Penetapan Kebijakan dalam rangka Pelaksanaan Penataan Ruang","APBD","TR",null,null,{"v":100000000,"d":"100,000,000"}]
[null,null,"b",null,"Pelaksanaan Persetujuan Substansi RDTR Kabupaten/Kota","APBD","TR",null,null,{"v":706000000,"d":"706,000,000"}]
[null,null,"c",null,"Pelaksanaan Fasilitasi RDTR Kabupaten/Kota","APBD","TR",null,null,{"v":350000000,"d":"350,000,000"}]
[null,null,"d",null,"Sistem informasi dan komunikasi penataan ruang","APBD","TR",null,null,{"v":300000000,"d":"300,000,000"}]
[null,null,"e",null,"Koordinasi Pelaksanaan Penataan Ruang","APBD","TR",null,null,{"v":100000000,"d":"100,000,000"}]
[null,null,"f",null,"Operasionalisasi Tugas dan Fungsi Forum Penataan Ruang","APBD","TR",null,null,{"v":50000000,"d":"50,000,000"}]
[]
[]
[]
[]
[{"$nulls":17},"Wonosobo,    Februari 2025"]
[{"$nulls":17},"  KEPALA DINAS PEKERJAAN UMUM"]
[{"$nulls":17},"   DAN PENATAAN RUANG"]
[{"$nulls":17},"KABUPATEN WONOSOBO"]
[]
[]
[]
[]
[{"$nulls":17},"NURUDIN ARDIYANTO, S.T, M.T"]
[{"$nulls":17},"Pembina Tingkat 1"]
[{"$nulls":17},"NIP. 19731021 200003 1 003"]

{"sheet":"Fisik","index":1,"n_rows":123,"n_cols":25,"rows_kept":123,"merged":[[0,0,0,21],[1,0,1,21],[3,0,3,3],[4,0,4,3],[5,0,6,3],[5,4,6,4],[5,5,6,5],[5,6,6,6],[5,7,6,7],[5,8,6,8],[5,9,6,9],[5,11,6,11],[5,12,5,14],[5,15,5,16],[5,17,5,18],[5,19,5,20],[5,22,5,23],[5,24,6,24],[7,0,7,3],[7,17,7,18],[7,19,7,20],[7,22,7,23]]}
["REKAPITULASI PERKEMBANGAN KEGIATAN BELAJA LANGSUNG"]
["TAHUN ANGGARAN 2025"]
[]
["NAMA OPD",{"$nulls":3},": DINAS PEKERJAAN UMUM DAN PENATAAN RUANG"]
["BULAN",{"$nulls":3},": JANUARI 2025"]
["NO",{"$nulls":3},"JENIS PEKERJAAN","SUMBER DANA","BIDANG","DESA","KECAMATAN","ANGGARAN (Rp)",null,"REKANAN","KONTRAK",null,null,"JANGKA WAKTU",null,"RENCANA KAS",null,"REALISASI KEUANGAN",null,"REALISASI FISIK","OUTPUT",null,"KETERANGAN"]
[{"$nulls":10},"PERUBAHAN",null,"TGL KONTRAK","NO KONTRAK","NILAI KONTRAK","MULAI","SELESAI","Jumlah (Rp)","%","Jumlah (Rp)","%","%","OUTPUT","SATUAN"]
[1,{"$nulls":3},2,3,4,5,5,6,8,9,10,11,12,13,14,15,null,16,null,17,18,null,19]
[{"$nulls":4},"DINAS PEKERJAAN UMUM DAN PENATAAN RUANG",{"$nulls":4},{"$f":"SUM(J11,J16,J28,J34,#REF!,#REF!,J41,#REF!,#REF!)","v":{"$error":"#REF!"}},{"$nulls":9},{"$f":"SUM(T11,T16,T28,T34,#REF!,#REF!,#REF!,T41,#REF!,#REF!)","v":{"$error":"#REF!"}},{"$f":"T9/J9*100","v":{"$error":"#REF!"}}]
[{"$nulls":9},{"v":102705077073,"d":"102,705,077,073"}]
["A",{"$nulls":3},"PROGRAM PENUNJANG URUSAN PEMERINTAHAN DAERAH KABUPATEN/KOTA",{"$nulls":4},{"$f":"SUM(#REF!,#REF!,#REF!,#REF!,#REF!,#REF!)","v":{"$error":"#REF!"}},{"$nulls":9},{"$f":"SUM(#REF!,#REF!,#REF!,#REF!,#REF!)","v":{"$error":"#REF!"}},{"$f":"T11/J11*100","v":{"$error":"#REF!"}}]
[{"$nulls":3},3,"Rehabilitasi Gedung Kantor Kelurahan Wonosobo Timur","APBD","SEK",null,"Wonosobo",{"v":1000000000,"d":"1,000,000,000"}]
[{"$nulls":3},4,"Pembangunan Gedung Provost Polres Wonosobo (Lanjutan)","APBD","SEK",null,"Wonosobo",{"v":750000000,"d":"750,000,000"}]
[{"$nulls":3},5,"REHABILITASI AULA POLSEK MOJOTENGAH","APBD","SEK",null,"Mojotengah",{"v":200000000,"d":"200,000,000"}]
[]
["B",{"$nulls":3},"PROGRAM PENGELOLAAN SUMBER DAYA AIR (SDA)",{"$nulls":4},{"$f":"SUM(#REF!,#REF!,#REF!,#REF!,#REF!)","v":{"$error":"#REF!"}}]
[{"$nulls":3},1,"Paket Pekerjaan 2025","APBD","SDA",null,null,{"v":1000000000,"d":"1,000,000,000"},{"$nulls":12},185,"M"]
[{"$nulls":3},2,"Irigasi Gintung Limbangan Watumalang","APBD","SDA",null,"Watumalang",{"v":500000000,"d":"500,000,000"},{"$nulls":12},75,"M"]
[{"$nulls":3},3,"SALURAN IRIGASI DI BANCET DESA. CANDI MULYO KEC. KERTEK , Kab. Wonosobo","APBD","SDA",null,"Kertek",{"v":200000000,"d":"200,000,000"},{"$nulls":12},200,"M"]
[{"$nulls":3},4,"Pembangunan Irigasi DI Sigupit Desa Karangrejo Kecamatan Selomerto","APBD","SDA",null,"Selomerto",{"v":200000000,"d":"200,000,000"},{"$nulls":12},175,"M"]
[{"$nulls":3},5,"PEMBANGUNAN SALURAN IRIGASI DI SIPENATUS DESA. REJOSARI KEC. KALIKAJAR, Kab. Wonosobo","APBD","SDA",null,"Kalikajar",{"v":200000000,"d":"200,000,000"},{"$nulls":12},75,"M"]
[{"$nulls":3},6,"pembangunan refilitasi/senderan irigasi DI pahat kelurahan kertek kampung campursari RW02 kec.Kertek, Kab. Wonosobo","APBD","SDA",null,"Kertek",{"v":200000000,"d":"200,000,000"},{"$nulls":12},165,"M"]
[{"$nulls":3},7,"pembangunan refilitasi irigasi DI Geblok kelurahan miplak kec. wonosobo, Kab. Wonosobo","APBD","SDA",null,"Wonosobo",{"v":200000000,"d":"200,000,000"},{"$nulls":12},70,"M"]
[{"$nulls":3},8,"REHABILITASI DI KALITULANG","APBD","SDA",null,"Watumalang",{"v":100000000,"d":"100,000,000"},{"$nulls":12},160,"M"]
[{"$nulls":3},9,"Pembangunan Bendung Penartan Sungai Wanganaji Kelurahan Kalianget Kecamatan Wonosobo","APBD","SDA",null,"Wonosobo",{"v":100000000,"d":"100,000,000"},{"$nulls":12},85,"M"]
[{"$nulls":3},10,"Rehabilitasi Saluran dan Senderan Kali Alur DI Mangli Kelurahan Kejiwan Kecamatan Wonosobo","APBD","SDA",null,"Wonosobo",{"v":200000000,"d":"200,000,000"},{"$nulls":12},125,"M"]
[{"$nulls":3},11,"Rahabilitasi Irigasi sikudi Kalimendong Kecamatan Leksono","APBD","SDA",null,"Leksono",{"v":200000000,"d":"200,000,000"},{"$nulls":12},130,"M"]
["C",{"$nulls":3},"PROGRAM PENGELOLAAN DAN PENGEMBANGAN SISTEM PENYEDIAAN AIR MINUM",{"$nulls":4},{"$f":"SUM(#REF!,#REF!)","v":{"$error":"#REF!"}}]
[{"$nulls":3},2,"Air bersih mojosari  dk wonoyoso mojotengah","APBD","CK",null,"Mojotengah",{"v":250000000,"d":"250,000,000"},{"$nulls":12},220,"SR"]
[{"$nulls":3},3,"Air bersih dk banaran kayugiyang garung","APBD","CK",null,"Garung",{"v":100000000,"d":"100,000,000"},{"$nulls":12},200,"SR"]
[{"$nulls":3},4,"Perluasan SPAM Jaringan Perpipaan Desa Tieng Kec. Kejajar","APBD","CK",null,"Kejajar",{"v":250000000,"d":"250,000,000"},{"$nulls":12},240,"SR"]
[{"$nulls":3},5,"Perluasan SPAM Jaringan Perpipaan Desa Damarkasiyan Kec. Kertek","APBD","CK",null,"Kertek",{"v":250000000,"d":"250,000,000"},{"$nulls":12},150,"SR"]
[]
["D",{"$nulls":3},"PROGRAM PENGELOLAAN DAN PENGEMBANGAN SISTEM AIR LIMBAH",{"$nulls":4},{"$f":"SUM(#REF!,#REF!,#REF!,#REF!)","v":{"$error":"#REF!"}}]
[{"$nulls":3},1,"Pembangunan Tangki Septik Komunal Pondok Pesantren Miftahul Huda Siwatu Bumiroso ","APBD","CK",null,"Watumalang",{"v":133500000,"d":"133,500,000"},{"$nulls":12},25,"SR"]
[{"$nulls":3},2,"Pembangunan Tangki Septik Komunal Desa Dieng Kec. Kejajar","APBD","CK",null,"Kejajar",{"v":150000000,"d":"150,000,000"},{"$nulls":12},25,"SR"]
[{"$nulls":3},3,"Pembangunan Tangki Septik Individu Desa Dempel Kec. Kalibawang","APBD","CK",null,"Kalibawang",{"v":150000000,"d":"150,000,000"},{"$nulls":12},34,"SR"]
[{"$nulls":3},4,"Pembangunan Tangki Septik Individu Desa Butuh Kec. Kalikajar","APBD","CK",null,"Kalikajar",{"v":150000000,"d":"150,000,000"},{"$nulls":12},30,"SR"]
[{"$nulls":3},5,"Pembangunan Tangki Septik Individu Desa Tambi Kec. Kejajar","APBD","CK",null,"Kejajar",{"v":150000000,"d":"150,000,000"},{"$nulls":12},30,"SR"]
[{"$nulls":3},6,"Pembangunan Tangki Septik Individu Desa Kapencar Kec. Kertek","APBD","CK",null,"Kertek",{"v":150000000,"d":"150,000,000"},{"$nulls":12},30,"SR"]
["H",{"$nulls":3},"PROGRAM PENYELENGGARAAN JALAN",{"$nulls":4},{"$f":"SUM(#REF!,#REF!,#REF!,#REF!,#REF!,#REF!,#REF!,#REF!,#REF!)","v":{"$error":"#REF!"}}]
[{"$nulls":3},1,"Penggantian Jembatan Gunturmadu","APBD","BM","Gunturmadu","Mojotengah",{"v":2750000000,"d":"2,750,000,000"},{"$nulls":12},18,"M"]
[{"$nulls":3},2,"Peningkatan Jembatan Kali Songgoluwang (Lanjutan)","APBD","BM","Manggis - Tlogogundang","Sukoharjo/Leksono",{"v":650000000,"d":"650,000,000"},{"$nulls":12},12,"m"]
[{"$nulls":3},3,"Pembangunan Jembatan Ruas Jalan Banyukembar - Pasuruhan Kec. Watumalang","APBD","BM",null,"Watumalang",{"v":200000000,"d":"200,000,000"},{"$nulls":12},6,"m"]
[{"$nulls":3},4,"Pembangunan Jembatan Sigandu Sungai Kali Kawung Sumberwulan Kecamatan Selomerto","APBD","BM",null,"Selomerto",{"v":200000000,"d":"200,000,000"},{"$nulls":12},6,"m"]
[{"$nulls":3},1,"Peningkatan Jalan Sumbersari - Binangun","APBD","BM",null,"Watumalang",{"v":2750000000,"d":"2,750,000,000"},{"$nulls":12},{"v":0.8,"d":"0.800"},"km"]
[{"$nulls":3},2,"Peningkatan Jalan Pasar lawas - Bts. Kab Banjarnegara","APBD","BM",null,"Watumalang",{"v":500000000,"d":"500,000,000"},{"$nulls":12},0.134,"km"]
[{"$nulls":3},3,"Peningkatan Jalan Tlogo - Banyukembar","APBD","BM",null,"Sukoharjo/Watumalang",{"v":2500000000,"d":"2,500,000,000"},{"$nulls":12},{"v":0.4,"d":"0.400"},"km"]
[{"$nulls":3},4,"Peningkatan Jalan Pasuruhan - Banyukembar","APBD","BM",null,"Watumalang",{"v":500000000,"d":"500,000,000"},{"$nulls":12},{"v":1.2,"d":"1.200"},"km"]
[{"$nulls":3},5,"Peningkatan Jalan Sukoharjo - Gunungtugel","APBD","BM",null,"Sukoharjo",{"v":500000000,"d":"500,000,000"},{"$nulls":12},{"v":0.8,"d":"0.800"},"km"]
[{"$nulls":3},6,"Peningkatan Jalan Kalilang - Bulu","APBD","BM",null,"Garung",{"v":2250000000,"d":"2,250,000,000"},{"$nulls":12},{"v":0.92,"d":"0.920"},"km"]
[{"$nulls":3},7,"Peningkatan Jalan Garung - Kalilang","APBD","BM",null,"Garung",{"v":1400000000,"d":"1,400,000,000"},{"$nulls":12},{"v":1.4,"d":"1.400"},"km"]
[{"$nulls":3},8,"Peningkatan Jalan Beran - Warangan","APBD","BM",null,"Kepil",{"v":700000000,"d":"700,000,000"},{"$nulls":12},{"v":1,"d":"1.000"},"km"]
[{"$nulls":3},9,"Peningkatan Jalan Tanjungsari-Marongsari","APBD","BM",null,"Sapuran",{"v":3250000000,"d":"3,250,000,000"},{"$nulls":12},{"v":0.8,"d":"0.800"},"km"]
[{"$nulls":3},10,"Peningkatan Jalan Larangan- Gambaran","APBD","BM",null,"Kaliwiro",{"v":1850000000,"d":"1,850,000,000"},{"$nulls":12},{"v":1.2,"d":"1.200"},"km"]
[{"$nulls":3},11,"Peningkatan Jalan Tanjunganom - Grugu","APBD","BM",null,"Kaliwiro",{"v":500000000,"d":"500,000,000"},{"$nulls":12},{"v":1.2,"d":"1.200"},"km"]
[{"$nulls":3},12,"Peningkatan Jalan Pucungkerep - Ngasinan","APBD","BM",null,"Kaliwiro",{"v":500000000,"d":"500,000,000"},{"$nulls":12},{"v":1.4,"d":"1.400"},"km"]
[{"$nulls":3},13,"Peningkatan Jalan Mojosari - Lumajang","APBD","BM",null,"Mojotengah/Watumalng",{"v":500000000,"d":"500,000,000"},{"$nulls":12},{"v":0.6,"d":"0.600"},"km"]
[{"$nulls":3},14,"Peningkatan Jalan Panerusan - Karanggedang (Batas Kab Purworejo)","APBD","BM",null,"Wadaslintang",{"v":500000000,"d":"500,000,000"},{"$nulls":12},{"v":0.6,"d":"0.600"},"km"]
[{"$nulls":3},15,"Peningkatan Jalan Mudal - Candirejo","APBD","BM",null,"Mojotengah",{"v":500000000,"d":"500,000,000"},{"$nulls":12},{"v":0.6,"d":"0.600"},"km"]
[{"$nulls":3},16,"Peningkatan Jalan Dempel - Margolangu","APBD","BM",null,"Kalibawang",{"v":500000000,"d":"500,000,000"},{"$nulls":12},{"v":0.6,"d":"0.600"},"km"]
[{"$nulls":3},17,"Peningkatan Jalan Ngadisono - Gambaran","APBD","BM",null,"Kaliwiro",{"v":750000000,"d":"750,000,000"}]
[{"$nulls":3},18,"Peningkatan Jalan Gunungtugel - Kajeksan","APBD","BM",null,"Sukoharjo",{"v":1000000000,"d":"1,000,000,000"}]
[{"$nulls":3},19,"PENINGKATAN JALAN 59 SIYONO - SEMAYU ","DAK","BM",null,"Selomerto",{"v":2298835000,"d":"2,298,835,000"},{"$nulls":12},0.568,"km"]
[{"$nulls":3},20,"PENINGKATAN JALAN 85 JENGKOL - TLOGO","DAK","BM",null,"Garung",{"v":4027908000,"d":"4,027,908,000"},{"$nulls":12},5.899,"km"]
[{"$nulls":3},21,"PENINGKATAN JALAN 99 KALIBEBER - DERODUWUR","DAK","BM",null,"Mojotengah",{"v":8014077500,"d":"8,014,077,500"},{"$nulls":12},{"v":1.2,"d":"1.200"},"km"]
[{"$nulls":3},22,"PENIGKATAN JALAN 130 KALIKAJAR - PERBOTO","DAK","BM",null,"Kalikajar",{"v":5643687500,"d":"5,643,687,500"},{"$nulls":12},{"v":7.95,"d":"7.950"},"km"]
[{"$nulls":3},23,"PENIGKATAN JALAN 257 KURIPAN - WONOKAMPIR","DAK","BM",null,"Watumalang",{"v":9068070000,"d":"9,068,070,000"}]
[{"$nulls":3},24,"Aspalisasi jalan Ruas 208 Kalisat - Plunjaran di Plunjaran Desa Plunjaran Kec. Wadaslintang","APBD","BM",null,"Wadaslintang",{"v":190000000,"d":"190,000,000"}]
[{"$nulls":3},25,"JALAN SEMAYU bojasari ruas 69 pengaspalan jalan","APBD","BM",null,"Selomerto",{"v":200000000,"d":"200,000,000"}]
[{"$nulls":3},26,"PENINGKATAN JALAN SEMEN - GENTING, KECAMATAN KALIKAJAR","APBD","BM",null,"Kalikajar",{"v":200000000,"d":"200,000,000"}]
[{"$nulls":3},27,"PENINGKATAN JALAN RUAS NO 82 KALILANG - BULU","APBD","BM",null,"Garung",{"v":200000000,"d":"200,000,000"}]
[{"$nulls":3},28,"PENINGKATAN JALAN DAN DRAINASE RUAS NO 188 KAYUBIMA - KALIKUTO ( BNA )","APBD","BM",null,"Kaliwiro",{"v":200000000,"d":"200,000,000"}]
[{"$nulls":3},29,"Aspal Jalan Kabupaten Ruas 62 Banjar - Kasiyan Desa Damarkasiyan Kecamatan Kertek","APBD","BM",null,"Kertek",{"v":200000000,"d":"200,000,000"}]
[{"$nulls":3},30,"Aspal Jalan Kabupaten Ruas 58 Sudungdewo - Bejiarum","APBD","BM",null,"Kertek",{"v":200000000,"d":"200,000,000"}]
[{"$nulls":3},31,"Aspal Jalan ruas 213 Kepunding Kalilaras Desa Ngalian Kecamatan Wadaslintang","APBD","BM",null,"Wadaslintang",{"v":150000000,"d":"150,000,000"}]
[{"$nulls":3},32,"Peningkatan Jalan Kemiriombo, katilampa, Tempurejo","APBD","BM",null,"Kalibawang",{"v":150000000,"d":"150,000,000"}]
[{"$nulls":3},33,"Peningkatan Jalan Mergolangu - Depok di Wanasari","APBD","BM",null,"Kalibawang",{"v":150000000,"d":"150,000,000"}]
[{"$nulls":3},24,"PENGASPALAN JALAN SITIHARJO WONOKROMO NO RUAS 78","APBD","BM",null,"Garung",{"v":150000000,"d":"150,000,000"}]
[{"$nulls":3},25,"SENDERAN BAHU JALAN DAN DRAINASE KALIKAJAR-PERBOTO RUAS JALAN NO 130 DUSUN NASINAN KELURAHAN KALIKAJAR KECAMATAN KALIKAJAR, Kab. Wonosobo","APBD","BM",null,"Kalikajar",{"v":200000000,"d":"200,000,000"}]
[{"$nulls":3},26,"PEMBANGUNAN DRAINASE KERTEK- PONGGOYUDAN NO RUAS 60 DUSUN KLILIN DESA. SINDUPATEN KEC. KERTEK KAB. WONOSOBO","APBD","BM",null,"Kertek",{"v":200000000,"d":"200,000,000"}]
[{"$nulls":3},27,"ASPAL JALAN RIMPAK- BATURSARI RUAS NO 127 DESA. RIMPAK KEC. SAPURAN , Kab. Wonosobo","APBD","BM",null,"Sapuran",{"v":200000000,"d":"200,000,000"}]
[{"$nulls":3},28,"PEMBANGUNAN SENDERAN JALAN RUAS 137 KEMBARAN - TEGALOMBO (DUSUN WONOKRIYO), Kab. Wonosobo","APBD","BM",null,"Kalikajar",{"v":200000000,"d":"200,000,000"}]
[{"$nulls":3},29,"ASPAL JALAN SIRUKEM- BERAN NO RUAS 164 DESA. BERAN KEC. KEPIL, Kab. Wonosobo","APBD","BM",null,"Kepil",{"v":200000000,"d":"200,000,000"}]
[{"$nulls":3},30,"Peningkatan Jalan Kabupaten Ruas 127 Rimpak - Batursari Kec. Sapuran","APBD","BM",null,"Sapuran",{"v":200000000,"d":"200,000,000"}]
[{"$nulls":3},31,"Peningkatan Jalan Kabupaten Ruas Kembaran - Banyumudal Kec. Sapuran","APBD","BM",null,"Sapuran",{"v":150000000,"d":"150,000,000"}]
[{"$nulls":3},32,"Peningkatan Jalan Ruas Jalan 202 Trimulyo - Lancar Kecamatan Wadaslintang","APBD","BM",null,"Wadaslintang",{"v":200000000,"d":"200,000,000"}]
[{"$nulls":3},33,"Jalan Lamuk - Kalikuning ruas 140 Kecamatan Kalikajar dalam kondisi rusak","APBD","BM",null,"Kalikajar",{"v":150000000,"d":"150,000,000"}]
[{"$nulls":3},27,"jalan ruas 53 ngadikusuman menuju tlogodalem kondisi rusak","APBD","BM",null,"Kertek",{"v":200000000,"d":"200,000,000"}]
[{"$nulls":3},28,"Aspal Ruas 95 Jalan Kalibeber Slukatan Desa Slukatan Kecamatan Mojotengah Kab. Wonosobo","APBD","BM",null,"Mojotengah",{"v":200000000,"d":"200,000,000"}]
[{"$nulls":3},29,"Betonisasi Jalan Ruas 96 Jalan Lumajang-Mojosari Blok Kalitelu","APBD","BM",null,"Mojotengah/Watumalng",{"v":150000000,"d":"150,000,000"}]
[{"$nulls":3},30,"Aspal Jalan Banaran - Lamuk Ruas 156 Desa Wonosari Kecamatan Kalikajar","APBD","BM",null,"Kalikajar",{"v":200000000,"d":"200,000,000"}]
[{"$nulls":3},31,"Aspal Jalan Ruas Sadan-Butuh Kidul Ruas 161 Blok Pleregan Desa Butuh Kidul Kecamatan Kalikajar","APBD","BM",null,"Kalikajar",{"v":200000000,"d":"200,000,000"}]
[{"$nulls":3},32,"Aspal Jalan Perboto - kedalon No. Ruas 155 blok Njemparang Desa Perboto Kecamatan Kalikajar","APBD","BM",null,"Kalikajar",{"v":200000000,"d":"200,000,000"}]
[{"$nulls":3},33,"Aspal jalan Kalikarung - Kalibawang Ruas 120 Kalikarung Kec.Kalibawang","APBD","BM",null,"Kalibawang",{"v":200000000,"d":"200,000,000"}]
[{"$nulls":3},34,"Aspal jalan Kalikarung -Pengarengan Ruas 215 Kec. Kalibawang","APBD","BM",null,"Kalibawang",{"v":200000000,"d":"200,000,000"}]
[{"$nulls":3},35,"Aspal jalan kalibawang - tempurejo Ruas 141 kec.Kalibawang","APBD","BM",null,"Kalibawang",{"v":200000000,"d":"200,000,000"}]
[{"$nulls":3},36,"Pembangunan Aspal Jalan Pagerejo-Purwojati Ruas 65 Blok Dusun Gumawang Desa Pagerejo Kec. Kertek","APBD","BM",null,"Kertek",{"v":200000000,"d":"200,000,000"}]
[{"$nulls":3},37,"Aspal Jalan Ruas Kedalon Banyu Mudal no. 154 Blok Semen-Kwadungan Desa purwojiwo Kec. Kalikajar","APBD","BM",null,"Kalikajar",{"v":200000000,"d":"200,000,000"}]
[{"$nulls":3},38,"Pembangunan Jalan Beton Ruas Luwihan Bakalan No. Ruas 158 blok Bakalan Desa Bowongso Kec. Kalikajar","APBD","BM",null,"Kalikajar",{"v":200000000,"d":"200,000,000"}]
[{"$nulls":3},39,"Peningkatan Jalan Bugangan - Bangsri Blok Wonokero Kecamatan Wonosobo Ruas 48","APBD","BM",null,"Wonosobo",{"v":200000000,"d":"200,000,000"}]
[{"$nulls":3},40,"Aspal jalan Lumajang Mojosari di Dusun Deles Ruas 96","APBD","BM",null,"Mojotengah",{"v":200000000,"d":"200,000,000"}]
[{"$nulls":3},41,"Aspal Jalan Ruas 264 Wonokampir - Gedangsari- Pagedangan - Mutisari","APBD","BM",null,"Watumalang",{"v":200000000,"d":"200,000,000"}]
[{"$nulls":3},42,"Aspal Jalan Ruas 160 Gondowulan - Kepil di Desa Gondowulan","APBD","BM",null,"Kepil",{"v":150000000,"d":"150,000,000"}]
[{"$nulls":3},43,"Pembangunan Senderan dan Aspal Jalan Gadingrejo - Bener Ruas 162","APBD","BM",null,"Kepil",{"v":200000000,"d":"200,000,000"}]
[{"$nulls":3},44,"Aspal Jalan Bojongan Jangkrikan Ruas 170","APBD","BM",null,"Kepil",{"v":150000000,"d":"150,000,000"}]
[{"$nulls":3},45,"Aspal Jalan Beran Rimpak Ruas 163","APBD","BM",null,"Kepil",{"v":150000000,"d":"150,000,000"}]
[{"$nulls":3},2,"Rehabilitasi Jalan Diwek - Kaliputih, Desa Balekambang","APBD","BM",null,"Selomerto",{"v":300000000,"d":"300,000,000"},{"$nulls":12},{"v":0.8,"d":"0.800"},"km"]
[{"$nulls":3},3,"Rehabilitasi Jalan Garung - Boralan - Kayugiyang","APBD","BM",null,"Garung",{"v":300000000,"d":"300,000,000"},{"$nulls":12},0.134,"km"]
[{"$nulls":3},4,"Rehabilitasi jalan selokromo krasak","APBD","BM",null,"Leksono/Selomerto",{"v":800000000,"d":"800,000,000"},{"$nulls":12},{"v":0.4,"d":"0.400"},"km"]
[{"$nulls":3},5,"Aspal Jalan Dusun Selamaya Ruas 224 Kajeksan - Gunung Tugel Kec. Sukoharjo","APBD","BM",null,"Sukoharjo",{"v":200000000,"d":"200,000,000"},{"$nulls":12},{"v":0.4,"d":"0.400"},"km"]
[{"$nulls":3},6,"Peningkatan Jalan Ruas 116 Sapuran - Marongsari Kecamatan Sapuran Kabupaten Wonosobo","APBD","BM",null,"Sapuran",{"v":150000000,"d":"150,000,000"},{"$nulls":12},{"v":0.8,"d":"0.800"},"km"]
[{"$nulls":3},7,"Pembangunan Drainase dan Senderan Rt. 3 Rw 2 Kp. Wonoroto Kel. Wonoroto Kec. Watumalang","APBD","BM",null,"Watumalang",{"v":100000000,"d":"100,000,000"},{"$nulls":12},{"v":1.2,"d":"1.200"},"km"]
[{"$nulls":3},8,"Pembangunan Drainase Jalan Utama Kejiwan Kuripan Blok Petir","APBD","BM",null,"Watumalang",{"v":150000000,"d":"150,000,000"},{"$nulls":12},{"v":0.8,"d":"0.800"},"km"]
[{"$nulls":3},9,"Pembangunan rehabilitasi aspal jalan welahan- banyukembar kecamatan watumalang","APBD","BM",null,"Watumalang",{"v":200000000,"d":"200,000,000"},{"$nulls":12},{"v":0.2,"d":"0.200"},"km"]
[{"$nulls":3},10,"Aspal Jalan Ruas 79 Bakalan ke Boralan Blok Dusun Bakalan Desa Siwuran Kecamatan Garung","APBD","BM",null,"Garung",{"v":200000000,"d":"200,000,000"},{"$nulls":12},{"v":1.16,"d":"1.160"},"km"]
[{"$nulls":3},11,"Peningkatan Jalan Blok Wonolobo Desa Manggis","APBD","BM",null,"Leksono",{"v":200000000,"d":"200,000,000"},{"$nulls":12},{"v":0.2375,"d":"0.238"},"km"]
[{"$nulls":3},12,"rehabilitasi aspal jalan ruas 202 desa trimulyo lancar kecamatan wadaslintang","APBD","BM",null,"Wadaslintang",{"v":200000000,"d":"200,000,000"},{"$nulls":12},{"v":0.12666666666666668,"d":"0.127"},"km"]
[{"$nulls":3},13," Rehabilitasi Jalan Ngadikusuman-Tlogodalem (nomor ruas 53)","APBD","BM",null,"Kertek",{"v":240000000,"d":"240,000,000"}]
[{"$nulls":3},14," Rehabilitasi Jalan ruas Krasak-Winongsari nomor ruas 64","APBD","BM",null,"Selmerto/kaliwiro",{"v":245000000,"d":"245,000,000"}]
[{"$nulls":3},15," Rehabilitasi Jalan ruas Leksono - Kalimendong nomor ruas 241","APBD","BM",null,"Leksono",{"v":283395000,"d":"283,395,000"}]
[{"$nulls":3},16," Rehabilitasi Jalan ruas Mergosari - Kupangan nomor 219","APBD","BM",null,"Sukoharjo",{"v":245000000,"d":"245,000,000"}]
[{"$nulls":3},17," Rehabilitasi Jalan ruas Sidojoyo - Bangsri No ruas 31","APBD","BM",null,"Wonosobo",{"v":245000000,"d":"245,000,000"}]

{"sheet":"Per Kecamatan","index":2,"n_rows":129,"n_cols":22,"rows_kept":129,"merged":[[0,0,0,18],[1,0,1,18],[2,0,2,18],[5,0,6,0],[5,1,6,1],[5,2,6,2],[5,3,6,3],[5,4,6,4],[5,5,6,5],[5,6,6,6],[5,8,6,8],[5,9,5,11],[5,12,5,13],[5,14,5,15],[5,16,5,17],[5,19,5,20],[5,21,6,21],[7,14,7,15],[7,16,7,17],[7,19,7,20]]}
["KEGIATAN FISIK 2025 PER KECAMATAN"]
["DINAS PEKERJAAN UMUM DAN PENATAAN RUANG"]
["KABUPATEN WONOSOBO"]
[]
[null,"BULAN JANUARI 2025"]
["NO","JENIS PEKERJAAN","SUMBER DANA","BIDANG","DESA","KECAMATAN","ANGGARAN (Rp)",null,"REKANAN","KONTRAK",null,null,"JANGKA WAKTU",null,"RENCANA KAS",null,"REALISASI KEUANGAN",null,"REALISASI FISIK","OUTPUT",null,"KETERANGAN"]
[{"$nulls":7},"PERUBAHAN",null,"TGL KONTRAK","NO KONTRAK","NILAI KONTRAK","MULAI","SELESAI","Jumlah (Rp)","%","Jumlah (Rp)","%","%","OUTPUT","SATUAN"]
[null,2,3,4,5,5,6,8,9,10,11,12,13,14,15,null,16,null,17,18,null,19]
[null,"DINAS PEKERJAAN UMUM DAN PENATAAN RUANG",{"$nulls":4},{"$f":"SUM(G10,G19,G27,G40,G46,G50,G57,G68,G73,G83,G89,G96,G103,G109,G122)","v":{"v":70934473017.41699,"d":"70,934,473,017"}},{"$nulls":9},{"$f":"SUM(#REF!,#REF!,#REF!,#REF!,#REF!,#REF!,#REF!,#REF!,#REF!,#REF!)","v":{"$error":"#REF!"}},{"$f":"Q9/G9*100","v":{"$error":"#REF!"}}]
["A","KECAMATAN GARUNG",{"$nulls":4},{"$f":"SUM(G11:G18)","v":{"v":8627908000,"d":"8,627,908,000"}}]
[1,"Air bersih dk banaran kayugiyang garung","APBD","CK",null,"Garung",{"v":100000000,"d":"100,000,000"}]
[2,"Peningkatan Jalan Kalilang - Bulu","APBD","BM",null,"Garung",{"v":2250000000,"d":"2,250,000,000"}]
[3,"Peningkatan Jalan Garung - Kalilang","APBD","BM",null,"Garung",{"v":1400000000,"d":"1,400,000,000"}]
[4,"PENINGKATAN JALAN 85 JENGKOL - TLOGO","DAK","BM",null,"Garung",{"v":4027908000,"d":"4,027,908,000"},{"$nulls":12},185,"M"]
[5,"PENINGKATAN JALAN RUAS NO 82 KALILANG - BULU","APBD","BM",null,"Garung",{"v":200000000,"d":"200,000,000"},{"$nulls":12},75,"M"]
[6,"PENGASPALAN JALAN SITIHARJO WONOKROMO NO RUAS 78","APBD","BM",null,"Garung",{"v":150000000,"d":"150,000,000"},{"$nulls":12},200,"M"]
[7,"Rehabilitasi Jalan Garung - Boralan - Kayugiyang","APBD","BM",null,"Garung",{"v":300000000,"d":"300,000,000"},{"$nulls":12},175,"M"]
[8,"Aspal Jalan Ruas 79 Bakalan ke Boralan Blok Dusun Bakalan Desa Siwuran Kecamatan Garung","APBD","BM",null,"Garung",{"v":200000000,"d":"200,000,000"},{"$nulls":12},75,"M"]
["B","KECAMATAN KALIBAWANG",{"$nulls":4},{"$f":"SUM(G20:G26)","v":{"v":1550000000,"d":"1,550,000,000"}}]
[1,"Pembangunan Tangki Septik Individu Desa Dempel Kec. Kalibawang","APBD","CK",null,"Kalibawang",{"v":150000000,"d":"150,000,000"},{"$nulls":12},165,"M"]
[2,"Peningkatan Jalan Dempel - Margolangu","APBD","BM",null,"Kalibawang",{"v":500000000,"d":"500,000,000"},{"$nulls":12},70,"M"]
[3,"Peningkatan Jalan Kemiriombo, katilampa, Tempurejo","APBD","BM",null,"Kalibawang",{"v":150000000,"d":"150,000,000"},{"$nulls":12},160,"M"]
[4,"Peningkatan Jalan Mergolangu - Depok di Wanasari","APBD","BM",null,"Kalibawang",{"v":150000000,"d":"150,000,000"},{"$nulls":12},85,"M"]
[5,"Aspal jalan Kalikarung - Kalibawang Ruas 120 Kalikarung Kec.Kalibawang","APBD","BM",null,"Kalibawang",{"v":200000000,"d":"200,000,000"},{"$nulls":12},125,"M"]
[6,"Aspal jalan Kalikarung -Pengarengan Ruas 215 Kec. Kalibawang","APBD","BM",null,"Kalibawang",{"v":200000000,"d":"200,000,000"},{"$nulls":12},130,"M"]
[7,"Aspal jalan kalibawang - tempurejo Ruas 141 kec.Kalibawang","APBD","BM",null,"Kalibawang",{"v":200000000,"d":"200,000,000"},{"$nulls":12},220,"SR"]
["C","KECAMATAN KALIKAJAR",{"$nulls":4},{"$f":"SUM(G28:G39)","v":{"v":7743687500,"d":"7,743,687,500"}}]
[1,"PEMBANGUNAN SALURAN IRIGASI DI SIPENATUS DESA. REJOSARI KEC. KALIKAJAR, Kab. Wonosobo","APBD","SDA",null,"Kalikajar",{"v":200000000,"d":"200,000,000"},{"$nulls":12},200,"SR"]
[2,"Pembangunan Tangki Septik Individu Desa Butuh Kec. Kalikajar","APBD","CK",null,"Kalikajar",{"v":150000000,"d":"150,000,000"},{"$nulls":12},240,"SR"]
[3,"PENIGKATAN JALAN 130 KALIKAJAR - PERBOTO","DAK","BM",null,"Kalikajar",{"v":5643687500,"d":"5,643,687,500"},{"$nulls":12},150,"SR"]
[4,"PENINGKATAN JALAN SEMEN - GENTING, KECAMATAN KALIKAJAR","APBD","BM",null,"Kalikajar",{"v":200000000,"d":"200,000,000"},{"$nulls":12},25,"SR"]
[5,"SENDERAN BAHU JALAN DAN DRAINASE KALIKAJAR-PERBOTO RUAS JALAN NO 130 DUSUN NASINAN KELURAHAN KALIKAJAR KECAMATAN KALIKAJAR, Kab. Wonosobo","APBD","BM",null,"Kalikajar",{"v":200000000,"d":"200,000,000"},{"$nulls":12},25,"SR"]
[6,"PEMBANGUNAN SENDERAN JALAN RUAS 137 KEMBARAN - TEGALOMBO (DUSUN WONOKRIYO), Kab. Wonosobo","APBD","BM",null,"Kalikajar",{"v":200000000,"d":"200,000,000"},{"$nulls":12},34,"SR"]
[7,"Jalan Lamuk - Kalikuning ruas 140 Kecamatan Kalikajar dalam kondisi rusak","APBD","BM",null,"Kalikajar",{"v":150000000,"d":"150,000,000"},{"$nulls":12},30,"SR"]
[8,"Aspal Jalan Banaran - Lamuk Ruas 156 Desa Wonosari Kecamatan Kalikajar","APBD","BM",null,"Kalikajar",{"v":200000000,"d":"200,000,000"},{"$nulls":12},30,"SR"]
[9,"Aspal Jalan Ruas Sadan-Butuh Kidul Ruas 161 Blok Pleregan Desa Butuh Kidul Kecamatan Kalikajar","APBD","BM",null,"Kalikajar",{"v":200000000,"d":"200,000,000"},{"$nulls":12},30,"SR"]
[10,"Aspal Jalan Perboto - kedalon No. Ruas 155 blok Njemparang Desa Perboto Kecamatan Kalikajar","APBD","BM",null,"Kalikajar",{"v":200000000,"d":"200,000,000"},{"$nulls":12},18,"M"]
[11,"Aspal Jalan Ruas Kedalon Banyu Mudal no. 154 Blok Semen-Kwadungan Desa purwojiwo Kec. Kalikajar","APBD","BM",null,"Kalikajar",{"v":200000000,"d":"200,000,000"},{"$nulls":12},12,"m"]
[12,"Pembangunan Jalan Beton Ruas Luwihan Bakalan No. Ruas 158 blok Bakalan Desa Bowongso Kec. Kalikajar","APBD","BM",null,"Kalikajar",{"v":200000000,"d":"200,000,000"},{"$nulls":12},6,"m"]
["D","KECAMATAN KALIWIRO",{"$nulls":4},{"$f":"SUM(G41:G45)","v":{"v":3800000000,"d":"3,800,000,000"}}]
[1,"Peningkatan Jalan Larangan- Gambaran","APBD","BM",null,"Kaliwiro",{"v":1850000000,"d":"1,850,000,000"},{"$nulls":12},6,"m"]
[2,"Peningkatan Jalan Tanjunganom - Grugu","APBD","BM",null,"Kaliwiro",{"v":500000000,"d":"500,000,000"},{"$nulls":12},{"v":0.8,"d":"0.800"},"km"]
[3,"Peningkatan Jalan Pucungkerep - Ngasinan","APBD","BM",null,"Kaliwiro",{"v":500000000,"d":"500,000,000"},{"$nulls":12},0.134,"km"]
[4,"Peningkatan Jalan Ngadisono - Gambaran","APBD","BM",null,"Kaliwiro",{"v":750000000,"d":"750,000,000"},{"$nulls":12},{"v":0.4,"d":"0.400"},"km"]
[5,"PENINGKATAN JALAN DAN DRAINASE RUAS NO 188 KAYUBIMA - KALIKUTO ( BNA )","APBD","BM",null,"Kaliwiro",{"v":200000000,"d":"200,000,000"},{"$nulls":12},{"v":1.2,"d":"1.200"},"km"]
["E","KECAMATAN KEJAJAR",{"$nulls":4},{"$f":"SUM(G47:G49)","v":{"v":550000000,"d":"550,000,000"}}]
[1,"Perluasan SPAM Jaringan Perpipaan Desa Tieng Kec. Kejajar","APBD","CK",null,"Kejajar",{"v":250000000,"d":"250,000,000"},{"$nulls":12},{"v":0.8,"d":"0.800"},"km"]
[2,"Pembangunan Tangki Septik Komunal Desa Dieng Kec. Kejajar","APBD","CK",null,"Kejajar",{"v":150000000,"d":"150,000,000"},{"$nulls":12},{"v":0.92,"d":"0.920"},"km"]
[3,"Pembangunan Tangki Septik Individu Desa Tambi Kec. Kejajar","APBD","CK",null,"Kejajar",{"v":150000000,"d":"150,000,000"},{"$nulls":12},{"v":1.4,"d":"1.400"},"km"]
["F","KECAMATAN KEPIL",{"$nulls":4},{"$f":"SUM(G51:G56)","v":{"v":1550000000,"d":"1,550,000,000"}}]
[1,"Peningkatan Jalan Beran - Warangan","APBD","BM",null,"Kepil",{"v":700000000,"d":"700,000,000"},{"$nulls":12},{"v":1,"d":"1.000"},"km"]
[2,"ASPAL JALAN SIRUKEM- BERAN NO RUAS 164 DESA. BERAN KEC. KEPIL, Kab. Wonosobo","APBD","BM",null,"Kepil",{"v":200000000,"d":"200,000,000"},{"$nulls":12},{"v":0.8,"d":"0.800"},"km"]
[3,"Aspal Jalan Ruas 160 Gondowulan - Kepil di Desa Gondowulan","APBD","BM",null,"Kepil",{"v":150000000,"d":"150,000,000"},{"$nulls":12},{"v":1.2,"d":"1.200"},"km"]
[4,"Pembangunan Senderan dan Aspal Jalan Gadingrejo - Bener Ruas 162","APBD","BM",null,"Kepil",{"v":200000000,"d":"200,000,000"},{"$nulls":12},{"v":1.2,"d":"1.200"},"km"]
[5,"Aspal Jalan Bojongan Jangkrikan Ruas 170","APBD","BM",null,"Kepil",{"v":150000000,"d":"150,000,000"},{"$nulls":12},{"v":1.4,"d":"1.400"},"km"]
[6,"Aspal Jalan Beran Rimpak Ruas 163","APBD","BM",null,"Kepil",{"v":150000000,"d":"150,000,000"},{"$nulls":12},{"v":0.6,"d":"0.600"},"km"]
["G","KECAMATAN KERTEK",{"$nulls":4},{"$f":"SUM(G58:V67)","v":{"v":2040000017.4170003,"d":"2,040,000,017"}}]
[1,"SALURAN IRIGASI DI BANCET DESA. CANDI MULYO KEC. KERTEK , Kab. Wonosobo","APBD","SDA",null,"Kertek",{"v":200000000,"d":"200,000,000"},{"$nulls":12},{"v":0.6,"d":"0.600"},"km"]
[2,"pembangunan refilitasi/senderan irigasi DI pahat kelurahan kertek kampung campursari RW02 kec.Kertek, Kab. Wonosobo","APBD","SDA",null,"Kertek",{"v":200000000,"d":"200,000,000"},{"$nulls":12},{"v":0.6,"d":"0.600"},"km"]
[3,"Perluasan SPAM Jaringan Perpipaan Desa Damarkasiyan Kec. Kertek","APBD","CK",null,"Kertek",{"v":250000000,"d":"250,000,000"},{"$nulls":12},{"v":0.6,"d":"0.600"},"km"]
[4,"Pembangunan Tangki Septik Individu Desa Kapencar Kec. Kertek","APBD","CK",null,"Kertek",{"v":150000000,"d":"150,000,000"}]
[5,"Aspal Jalan Kabupaten Ruas 62 Banjar - Kasiyan Desa Damarkasiyan Kecamatan Kertek","APBD","BM",null,"Kertek",{"v":200000000,"d":"200,000,000"}]
[6,"Aspal Jalan Kabupaten Ruas 58 Sudungdewo - Bejiarum","APBD","BM",null,"Kertek",{"v":200000000,"d":"200,000,000"},{"$nulls":12},0.568,"km"]
[7,"PEMBANGUNAN DRAINASE KERTEK- PONGGOYUDAN NO RUAS 60 DUSUN KLILIN DESA. SINDUPATEN KEC. KERTEK KAB. WONOSOBO","APBD","BM",null,"Kertek",{"v":200000000,"d":"200,000,000"},{"$nulls":12},5.899,"km"]
[8,"jalan ruas 53 ngadikusuman menuju tlogodalem kondisi rusak","APBD","BM",null,"Kertek",{"v":200000000,"d":"200,000,000"},{"$nulls":12},{"v":1.2,"d":"1.200"},"km"]
[9,"Pembangunan Aspal Jalan Pagerejo-Purwojati Ruas 65 Blok Dusun Gumawang Desa Pagerejo Kec. Kertek","APBD","BM",null,"Kertek",{"v":200000000,"d":"200,000,000"},{"$nulls":12},{"v":7.95,"d":"7.950"},"km"]
[10," Rehabilitasi Jalan Ngadikusuman-Tlogodalem (nomor ruas 53)","APBD","BM",null,"Kertek",{"v":240000000,"d":"240,000,000"}]
["H","KECAMATAN LEKSONO",{"$nulls":4},{"$f":"SUM(G69:G72)","v":{"v":1483395000,"d":"1,483,395,000"}}]
[1,"Rahabilitasi Irigasi sikudi Kalimendong Kecamatan Leksono","APBD","SDA",null,"Leksono",{"v":200000000,"d":"200,000,000"}]
[2,"Peningkatan Jalan Blok Wonolobo Desa Manggis","APBD","BM",null,"Leksono",{"v":200000000,"d":"200,000,000"}]
[3," Rehabilitasi Jalan ruas Leksono - Kalimendong nomor ruas 241","APBD","BM",null,"Leksono",{"v":283395000,"d":"283,395,000"}]
[4,"Rehabilitasi jalan selokromo krasak","APBD","BM",null,"Leksono/Selomerto",{"v":800000000,"d":"800,000,000"}]
["I","KECAMATAN MOJOTENGAH",{"$nulls":4},{"$f":"SUM(G74:G82)","v":{"v":12764077500,"d":"12,764,077,500"}}]
[1,"REHABILITASI AULA POLSEK MOJOTENGAH","APBD","SEK",null,"Mojotengah",{"v":200000000,"d":"200,000,000"}]
[2,"Air bersih mojosari  dk wonoyoso mojotengah","APBD","CK",null,"Mojotengah",{"v":250000000,"d":"250,000,000"}]
[3,"Penggantian Jembatan Gunturmadu","APBD","BM","Gunturmadu","Mojotengah",{"v":2750000000,"d":"2,750,000,000"}]
[4,"Peningkatan Jalan Mudal - Candirejo","APBD","BM",null,"Mojotengah",{"v":500000000,"d":"500,000,000"}]
[5,"PENINGKATAN JALAN 99 KALIBEBER - DERODUWUR","DAK","BM",null,"Mojotengah",{"v":8014077500,"d":"8,014,077,500"}]
[6,"Aspal Ruas 95 Jalan Kalibeber Slukatan Desa Slukatan Kecamatan Mojotengah Kab. Wonosobo","APBD","BM",null,"Mojotengah",{"v":200000000,"d":"200,000,000"}]
[7,"Aspal jalan Lumajang Mojosari di Dusun Deles Ruas 96","APBD","BM",null,"Mojotengah",{"v":200000000,"d":"200,000,000"}]
[8,"Peningkatan Jalan Mojosari - Lumajang","APBD","BM",null,"Mojotengah/Watumalng",{"v":500000000,"d":"500,000,000"}]
[9,"Betonisasi Jalan Ruas 96 Jalan Lumajang-Mojosari Blok Kalitelu","APBD","BM",null,"Mojotengah/Watumalng",{"v":150000000,"d":"150,000,000"}]
["J","KECAMATAN SAPURAN",{"$nulls":4},{"$f":"SUM(G84:G88)","v":{"v":3950000000,"d":"3,950,000,000"}}]
[1,"Peningkatan Jalan Tanjungsari-Marongsari","APBD","BM",null,"Sapuran",{"v":3250000000,"d":"3,250,000,000"}]
[2,"ASPAL JALAN RIMPAK- BATURSARI RUAS NO 127 DESA. RIMPAK KEC. SAPURAN , Kab. Wonosobo","APBD","BM",null,"Sapuran",{"v":200000000,"d":"200,000,000"}]
[3,"Peningkatan Jalan Kabupaten Ruas 127 Rimpak - Batursari Kec. Sapuran","APBD","BM",null,"Sapuran",{"v":200000000,"d":"200,000,000"}]
[4,"Peningkatan Jalan Kabupaten Ruas Kembaran - Banyumudal Kec. Sapuran","APBD","BM",null,"Sapuran",{"v":150000000,"d":"150,000,000"}]
[5,"Peningkatan Jalan Ruas 116 Sapuran - Marongsari Kecamatan Sapuran Kabupaten Wonosobo","APBD","BM",null,"Sapuran",{"v":150000000,"d":"150,000,000"}]
["K","KECAMATAN SELOMERTO",{"$nulls":4},{"$f":"SUM(G90:G95)","v":{"v":3443835000,"d":"3,443,835,000"}}]
[1,"Pembangunan Irigasi DI Sigupit Desa Karangrejo Kecamatan Selomerto","APBD","SDA",null,"Selomerto",{"v":200000000,"d":"200,000,000"}]
[2,"Pembangunan Jembatan Sigandu Sungai Kali Kawung Sumberwulan Kecamatan Selomerto","APBD","BM",null,"Selomerto",{"v":200000000,"d":"200,000,000"}]
[3,"PENINGKATAN JALAN 59 SIYONO - SEMAYU ","DAK","BM",null,"Selomerto",{"v":2298835000,"d":"2,298,835,000"}]
[4,"JALAN SEMAYU bojasari ruas 69 pengaspalan jalan","APBD","BM",null,"Selomerto",{"v":200000000,"d":"200,000,000"}]
[5,"Rehabilitasi Jalan Diwek - Kaliputih, Desa Balekambang","APBD","BM",null,"Selomerto",{"v":300000000,"d":"300,000,000"}]
[6," Rehabilitasi Jalan ruas Krasak-Winongsari nomor ruas 64","APBD","BM",null,"Selmerto/kaliwiro",{"v":245000000,"d":"245,000,000"}]
["L","KECAMATAN SUKOHARJO",{"$nulls":4},{"$f":"SUM(G97:G102)","v":{"v":5095000000,"d":"5,095,000,000"}}]
[1,"Peningkatan Jalan Sukoharjo - Gunungtugel","APBD","BM",null,"Sukoharjo",{"v":500000000,"d":"500,000,000"}]
[2,"Peningkatan Jalan Gunungtugel - Kajeksan","APBD","BM",null,"Sukoharjo",{"v":1000000000,"d":"1,000,000,000"}]
[3,"Aspal Jalan Dusun Selamaya Ruas 224 Kajeksan - Gunung Tugel Kec. Sukoharjo","APBD","BM",null,"Sukoharjo",{"v":200000000,"d":"200,000,000"}]
[4," Rehabilitasi Jalan ruas Mergosari - Kupangan nomor 219","APBD","BM",null,"Sukoharjo",{"v":245000000,"d":"245,000,000"}]
[5,"Peningkatan Jembatan Kali Songgoluwang (Lanjutan)","APBD","BM","Manggis - Tlogogundang","Sukoharjo/Leksono",{"v":650000000,"d":"650,000,000"}]
[6,"Peningkatan Jalan Tlogo - Banyukembar","APBD","BM",null,"Sukoharjo/Watumalang",{"v":2500000000,"d":"2,500,000,000"}]
["M","KECAMATAN WADASLINTANG",{"$nulls":4},{"$f":"SUM(G104:G108)","v":{"v":1240000000,"d":"1,240,000,000"}}]
[1,"Peningkatan Jalan Panerusan - Karanggedang (Batas Kab Purworejo)","APBD","BM",null,"Wadaslintang",{"v":500000000,"d":"500,000,000"}]
[2,"Aspalisasi jalan Ruas 208 Kalisat - Plunjaran di Plunjaran Desa Plunjaran Kec. Wadaslintang","APBD","BM",null,"Wadaslintang",{"v":190000000,"d":"190,000,000"}]
[3,"Aspal Jalan ruas 213 Kepunding Kalilaras Desa Ngalian Kecamatan Wadaslintang","APBD","BM",null,"Wadaslintang",{"v":150000000,"d":"150,000,000"}]
[4,"Peningkatan Jalan Ruas Jalan 202 Trimulyo - Lancar Kecamatan Wadaslintang","APBD","BM",null,"Wadaslintang",{"v":200000000,"d":"200,000,000"}]
[5,"rehabilitasi aspal jalan ruas 202 desa trimulyo lancar kecamatan wadaslintang","APBD","BM",null,"Wadaslintang",{"v":200000000,"d":"200,000,000"}]
["N","KECAMATAN WATUMALANG",{"$nulls":4},{"$f":"SUM(G110:G121)","v":{"v":14401570000,"d":"14,401,570,000"}}]
[1,"Irigasi Gintung Limbangan Watumalang","APBD","SDA",null,"Watumalang",{"v":500000000,"d":"500,000,000"}]
[2,"REHABILITASI DI KALITULANG","APBD","SDA",null,"Watumalang",{"v":100000000,"d":"100,000,000"}]
[3,"Pembangunan Tangki Septik Komunal Pondok Pesantren Miftahul Huda Siwatu Bumiroso ","APBD","CK",null,"Watumalang",{"v":133500000,"d":"133,500,000"}]
[4,"Pembangunan Jembatan Ruas Jalan Banyukembar - Pasuruhan Kec. Watumalang","APBD","BM",null,"Watumalang",{"v":200000000,"d":"200,000,000"}]
[5,"Peningkatan Jalan Sumbersari - Binangun","APBD","BM",null,"Watumalang",{"v":2750000000,"d":"2,750,000,000"}]
[6,"Peningkatan Jalan Pasar lawas - Bts. Kab Banjarnegara","APBD","BM",null,"Watumalang",{"v":500000000,"d":"500,000,000"}]
[7,"Peningkatan Jalan Pasuruhan - Banyukembar","APBD","BM",null,"Watumalang",{"v":500000000,"d":"500,000,000"}]
[8,"PENIGKATAN JALAN 257 KURIPAN - WONOKAMPIR","DAK","BM",null,"Watumalang",{"v":9068070000,"d":"9,068,070,000"}]
[9,"Aspal Jalan Ruas 264 Wonokampir - Gedangsari- Pagedangan - Mutisari","APBD","BM",null,"Watumalang",{"v":200000000,"d":"200,000,000"},{"$nulls":12},{"v":0.8,"d":"0.800"},"km"]
[10,"Pembangunan Drainase dan Senderan Rt. 3 Rw 2 Kp. Wonoroto Kel. Wonoroto Kec. Watumalang","APBD","BM",null,"Watumalang",{"v":100000000,"d":"100,000,000"},{"$nulls":12},0.134,"km"]
[11,"Pembangunan Drainase Jalan Utama Kejiwan Kuripan Blok Petir","APBD","BM",null,"Watumalang",{"v":150000000,"d":"150,000,000"},{"$nulls":12},{"v":0.4,"d":"0.400"},"km"]
[12,"Pembangunan rehabilitasi aspal jalan welahan- banyukembar kecamatan watumalang","APBD","BM",null,"Watumalang",{"v":200000000,"d":"200,000,000"},{"$nulls":12},{"v":0.4,"d":"0.400"},"km"]
["O","KECAMATAN WONOSOBO",{"$nulls":4},{"$f":"SUM(G123:G129)","v":{"v":2695000000,"d":"2,695,000,000"}}]
[1,"Rehabilitasi Gedung Kantor Kelurahan Wonosobo Timur","APBD","SEK",null,"Wonosobo",{"v":1000000000,"d":"1,000,000,000"},{"$nulls":12},{"v":0.8,"d":"0.800"},"km"]
[2,"Pembangunan Gedung Provost Polres Wonosobo (Lanjutan)","APBD","SEK",null,"Wonosobo",{"v":750000000,"d":"750,000,000"},{"$nulls":12},{"v":1.2,"d":"1.200"},"km"]
[3,"pembangunan refilitasi irigasi DI Geblok kelurahan miplak kec. wonosobo, Kab. Wonosobo","APBD","SDA",null,"Wonosobo",{"v":200000000,"d":"200,000,000"},{"$nulls":12},{"v":0.8,"d":"0.800"},"km"]
[4,"Pembangunan Bendung Penartan Sungai Wanganaji Kelurahan Kalianget Kecamatan Wonosobo","APBD","SDA",null,"Wonosobo",{"v":100000000,"d":"100,000,000"},{"$nulls":12},{"v":0.2,"d":"0.200"},"km"]
[5,"Rehabilitasi Saluran dan Senderan Kali Alur DI Mangli Kelurahan Kejiwan Kecamatan Wonosobo","APBD","SDA",null,"Wonosobo",{"v":200000000,"d":"200,000,000"},{"$nulls":12},{"v":1.16,"d":"1.160"},"km"]
[6,"Peningkatan Jalan Bugangan - Bangsri Blok Wonokero Kecamatan Wonosobo Ruas 48","APBD","BM",null,"Wonosobo",{"v":200000000,"d":"200,000,000"},{"$nulls":12},{"v":0.2375,"d":"0.238"},"km"]
[7," Rehabilitasi Jalan ruas Sidojoyo - Bangsri No ruas 31","APBD","BM",null,"Wonosobo",{"v":245000000,"d":"245,000,000"}]